[Event "Titled Tuesday Blitz August 31 2021"]
[White "Borsuk, Konstantin"]
[Black "Wagner, Dennis"]
[WhiteFideId "14113406"]
[BlackFideId "24650684"]
[WhiteElo "2382"]
[BlackElo "2355"]
[Result "0-1"]
[Round "05"]
[TimeControl "180+1"]
[Date "2021.08.31"]
[WhiteClock "0:01:04"]
[BlackClock "0:00:38"]

1. d4 {[%clk 0:03:00]}  d5 {[%clk 0:02:59]} 2. c4 {[%clk 0:03:01]}  c6 {[%clk 0:03:00]} 3. Nc3 {[%clk 0:03:01]}  Nf6 {[%clk 0:03:00]} 4. e3 {[%clk 0:03:01]}  Bf5 {[%clk 0:03:00]} 5. cxd5 {[%clk 0:03:00]}  cxd5 {[%clk 0:03:01]} 6. Qb3 {[%clk 0:03:00]}  Nc6 {[%clk 0:03:02]} 7. Qxb7 {[%clk 0:02:59]}  Bd7 {[%clk 0:03:02]} 8. Qb3 {[%clk 0:02:55]}  Rb8 {[%clk 0:03:02]} 9. Qd1 {[%clk 0:02:55]}  e5 {[%clk 0:03:03]} 10. dxe5 {[%clk 0:02:52]}  Nxe5 {[%clk 0:03:04]} 11. Be2 {[%clk 0:02:51]}  Bd6 {[%clk 0:03:02]} 12. Nf3 {[%clk 0:02:52]}  Nxf3+ {[%clk 0:03:02]} 13. Bxf3 {[%clk 0:02:52]}  Qc7 {[%clk 0:03:03]} 14. h3 {[%clk 0:02:44]}  O-O {[%clk 0:03:02]} 15. O-O {[%clk 0:02:44]}  Rfd8 {[%clk 0:02:54]} 16. Ne2 {[%clk 0:02:31]}  Bb5 {[%clk 0:02:40]} 17. Bd2 {[%clk 0:02:27]}  Ne4 {[%clk 0:02:36]} 18. Re1 {[%clk 0:01:59]}  Bh2+ {[%clk 0:02:32]} 19. Kf1 {[%clk 0:01:55]}  Qe5 {[%clk 0:01:31]} 20. Bc3 {[%clk 0:01:22]}  d4 {[%clk 0:00:50]} 21. Bxd4 {[%clk 0:01:10]}  Rxd4 {[%clk 0:00:37]} 22. exd4 {[%clk 0:01:08]}  Ng3+ {[%clk 0:00:38]} 23. fxg3 {[%clk 0:01:04]}  Qe3 {[%clk 0:00:38]} 0-1


[Site "https://www.chess.com"]

[Event "Titled Tuesday Blitz August 31 2021"]
[White "Boyer, Mahel"]
[Black "Bryakin, Mikhail"]
[WhiteFideId "45102422"]
[BlackFideId "4165314"]
[WhiteElo "2328"]
[BlackElo "2336"]
[Result "1/2-1/2"]
[Round "05"]
[TimeControl "180+1"]
[Date "2021.08.31"]
[WhiteClock "0:00:09"]
[BlackClock "0:02:31"]

1. d4 {[%clk 0:03:00]}  Nf6 {[%clk 0:02:56]} 2. Nf3 {[%clk 0:02:59]}  g6 {[%clk 0:02:56]} 3. e3 {[%clk 0:02:58]}  Bg7 {[%clk 0:02:56]} 4. Be2 {[%clk 0:02:59]}  O-O {[%clk 0:02:56]} 5. O-O {[%clk 0:03:00]}  c5 {[%clk 0:02:56]} 6. dxc5 {[%clk 0:02:50]}  Qa5 {[%clk 0:02:54]} 7. a3 {[%clk 0:02:45]}  Qxc5 {[%clk 0:02:55]} 8. c4 {[%clk 0:02:42]}  Qc7 {[%clk 0:02:55]} 9. Nc3 {[%clk 0:02:38]}  b6 {[%clk 0:02:56]} 10. b4 {[%clk 0:02:38]}  Bb7 {[%clk 0:02:56]} 11. Bb2 {[%clk 0:02:39]}  d6 {[%clk 0:02:57]} 12. Qb3 {[%clk 0:02:38]}  Nbd7 {[%clk 0:02:56]} 13. Rfd1 {[%clk 0:02:38]}  Rac8 {[%clk 0:02:56]} 14. Rac1 {[%clk 0:02:32]}  Qb8 {[%clk 0:02:56]} 15. Nd4 {[%clk 0:02:26]}  Qa8 {[%clk 0:02:56]} 16. Bf1 {[%clk 0:02:27]}  a6 {[%clk 0:02:55]} 17. h3 {[%clk 0:02:24]}  Rfd8 {[%clk 0:02:56]} 18. Na4 {[%clk 0:01:52]}  e6 {[%clk 0:02:55]} 19. Nc3 {[%clk 0:01:44]}  d5 {[%clk 0:02:55]} 20. cxd5 {[%clk 0:01:43]}  Nxd5 {[%clk 0:02:56]} 21. Nxd5 {[%clk 0:01:36]}  Bxd5 {[%clk 0:02:57]} 22. Qa4 {[%clk 0:01:37]}  b5 {[%clk 0:02:57]} 23. Qa5 {[%clk 0:01:35]}  Ne5 {[%clk 0:02:55]} 24. a4 {[%clk 0:01:18]}  Nc4 {[%clk 0:02:53]} 25. Bxc4 {[%clk 0:01:17]}  bxc4 {[%clk 0:02:51]} 26. f3 {[%clk 0:01:18]}  e5 {[%clk 0:02:45]} 27. Ne2 {[%clk 0:01:13]}  Bxf3 {[%clk 0:02:46]} 28. gxf3 {[%clk 0:00:41]}  Rxd1+ {[%clk 0:02:45]} 29. Rxd1 {[%clk 0:00:42]}  Qxf3 {[%clk 0:02:45]} 30. Rd8+ {[%clk 0:00:38]}  Rxd8 {[%clk 0:02:43]} 31. Qxd8+ {[%clk 0:00:39]}  Bf8 {[%clk 0:02:44]} 32. Qd2 {[%clk 0:00:37]}  Qxh3 {[%clk 0:02:42]} 33. Bxe5 {[%clk 0:00:33]}  Bxb4 {[%clk 0:02:35]} 34. Qd8+ {[%clk 0:00:28]}  Bf8 {[%clk 0:02:35]} 35. Qf6 {[%clk 0:00:28]}  Qxe3+ {[%clk 0:02:29]} 36. Kf1 {[%clk 0:00:28]}  Qh3+ {[%clk 0:02:26]} 37. Kf2 {[%clk 0:00:15]}  Qf5+ {[%clk 0:02:26]} 38. Qxf5 {[%clk 0:00:14]}  gxf5 {[%clk 0:02:26]} 39. Ng3 {[%clk 0:00:14]}  Bg7 {[%clk 0:02:24]} 40. Bxg7 {[%clk 0:00:13]}  Kxg7 {[%clk 0:02:25]} 41. Nxf5+ {[%clk 0:00:14]}  Kf6 {[%clk 0:02:26]} 42. Nd6 {[%clk 0:00:15]}  Ke5 {[%clk 0:02:24]} 43. Nxc4+ {[%clk 0:00:15]}  Kd4 {[%clk 0:02:25]} 44. Nd6 {[%clk 0:00:15]}  Kc5 {[%clk 0:02:24]} 45. Nxf7 {[%clk 0:00:14]}  Kb4 {[%clk 0:02:24]} 46. Ke3 {[%clk 0:00:11]}  Kxa4 {[%clk 0:02:24]} 47. Kd3 {[%clk 0:00:10]}  Kb3 {[%clk 0:02:25]} 48. Ng5 {[%clk 0:00:10]}  h5 {[%clk 0:02:25]} 49. Nf3 {[%clk 0:00:10]}  a5 {[%clk 0:02:25]} 50. Kd2 {[%clk 0:00:10]}  Kb2 {[%clk 0:02:25]} 51. Ne1 {[%clk 0:00:08]}  a4 {[%clk 0:02:26]} 52. Nd3+ {[%clk 0:00:09]}  Kb1 {[%clk 0:02:27]} 53. Kc3 {[%clk 0:00:05]}  a3 {[%clk 0:02:27]} 54. Nb4 {[%clk 0:00:05]}  a2 {[%clk 0:02:27]} 55. Nxa2 {[%clk 0:00:06]}  Kxa2 {[%clk 0:02:28]} 56. Kd3 {[%clk 0:00:06]}  h4 {[%clk 0:02:29]} 57. Ke3 {[%clk 0:00:07]}  h3 {[%clk 0:02:30]} 58. Kf3 {[%clk 0:00:07]}  h2 {[%clk 0:02:31]} 59. Kg2 {[%clk 0:00:08]}  h1=Q+ {[%clk 0:02:31]} 60. Kxh1 {[%clk 0:00:09]} 1/2-1/2


[Site "https://www.chess.com"]

[Event "Titled Tuesday Blitz August 31 2021"]
[White "Buscar, Michael"]
[Black "Solon, Nathan"]
[WhiteFideId "2603616"]
[BlackFideId "2017229"]
[WhiteElo "2010"]
[BlackElo "2663"]
[Result "1-0"]
[Round "05"]
[TimeControl "180+1"]
[Date "2021.08.31"]
[WhiteClock "0:00:08"]
[BlackClock "0:00:12"]

1. d4 {[%clk 0:02:53]}  Nf6 {[%clk 0:02:59]} 2. c4 {[%clk 0:02:53]}  e6 {[%clk 0:02:59]} 3. Nc3 {[%clk 0:02:53]}  Bb4 {[%clk 0:02:59]} 4. e3 {[%clk 0:02:52]}  O-O {[%clk 0:02:58]} 5. Bd3 {[%clk 0:02:53]}  d5 {[%clk 0:02:57]} 6. Nf3 {[%clk 0:02:52]}  dxc4 {[%clk 0:02:56]} 7. Bxc4 {[%clk 0:02:52]}  c5 {[%clk 0:02:56]} 8. O-O {[%clk 0:02:52]}  Nc6 {[%clk 0:02:56]} 9. a3 {[%clk 0:02:52]}  Ba5 {[%clk 0:02:56]} 10. d5 {[%clk 0:02:37]}  Bxc3 {[%clk 0:02:45]} 11. dxc6 {[%clk 0:02:37]}  Ba5 {[%clk 0:02:45]} 12. Qa4 {[%clk 0:02:18]}  Qc7 {[%clk 0:02:27]} 13. b4 {[%clk 0:02:10]}  cxb4 {[%clk 0:02:25]} 14. axb4 {[%clk 0:02:10]}  Bb6 {[%clk 0:02:25]} 15. b5 {[%clk 0:02:02]}  Ne4 {[%clk 0:01:52]} 16. Bb2 {[%clk 0:01:56]}  Nc5 {[%clk 0:01:30]} 17. Qa3 {[%clk 0:01:31]}  bxc6 {[%clk 0:01:30]} 18. Be5 {[%clk 0:01:31]}  Qb7 {[%clk 0:01:23]} 19. Bd6 {[%clk 0:01:29]}  cxb5 {[%clk 0:01:15]} 20. Bxb5 {[%clk 0:01:20]}  Bd7 {[%clk 0:01:15]} 21. Bxf8 {[%clk 0:01:15]}  Rxf8 {[%clk 0:01:12]} 22. Bxd7 {[%clk 0:01:09]}  Nxd7 {[%clk 0:01:12]} 23. Rfb1 {[%clk 0:01:09]}  h6 {[%clk 0:01:11]} 24. Nd4 {[%clk 0:01:09]}  Ne5 {[%clk 0:01:05]} 25. Nb5 {[%clk 0:01:07]}  Nc6 {[%clk 0:00:47]} 26. Nd6 {[%clk 0:01:04]}  Qe7 {[%clk 0:00:46]} 27. Nc4 {[%clk 0:01:01]}  Bc5 {[%clk 0:00:45]} 28. Qa6 {[%clk 0:01:00]}  Nb4 {[%clk 0:00:44]} 29. Qb5 {[%clk 0:00:53]}  Rd8 {[%clk 0:00:42]} 30. Ne5 {[%clk 0:00:46]}  Qd6 {[%clk 0:00:30]} 31. Nf3 {[%clk 0:00:21]}  Nd5 {[%clk 0:00:27]} 32. Qc4 {[%clk 0:00:19]}  Bb6 {[%clk 0:00:25]} 33. Nd4 {[%clk 0:00:17]}  Qd7 {[%clk 0:00:21]} 34. Nb5 {[%clk 0:00:15]}  Rc8 {[%clk 0:00:21]} 35. Qe2 {[%clk 0:00:15]}  Qc6 {[%clk 0:00:16]} 36. h3 {[%clk 0:00:09]}  Qd7 {[%clk 0:00:16]} 37. Rd1 {[%clk 0:00:09]}  Qe7 {[%clk 0:00:14]} 38. Rac1 {[%clk 0:00:09]}  Rb8 {[%clk 0:00:13]} 39. Nd4 {[%clk 0:00:08]}  f5 {[%clk 0:00:12]} 40. Nc6 {[%clk 0:00:08]} 1-0


[Site "https://www.chess.com"]

[Event "Titled Tuesday Blitz August 31 2021"]
[White "Costachi, Mihnea"]
[Black "Wachinger, Guenther"]
[WhiteFideId "1217518"]
[BlackFideId "4604261"]
[WhiteElo "2482"]
[BlackElo "2212"]
[Result "1-0"]
[Round "05"]
[TimeControl "180+1"]
[Date "2021.08.31"]
[WhiteClock "0:00:32"]
[BlackClock "0:00:01"]

1. d4 {[%clk 0:03:00]}  d5 {[%clk 0:02:59]} 2. c4 {[%clk 0:03:00]}  e6 {[%clk 0:02:59]} 3. Nc3 {[%clk 0:03:00]}  c6 {[%clk 0:02:59]} 4. cxd5 {[%clk 0:02:58]}  exd5 {[%clk 0:02:59]} 5. Nf3 {[%clk 0:02:59]}  Nf6 {[%clk 0:02:59]} 6. Bg5 {[%clk 0:02:59]}  h6 {[%clk 0:02:59]} 7. Bh4 {[%clk 0:02:58]}  Bb4 {[%clk 0:02:55]} 8. Qc2 {[%clk 0:02:57]}  g5 {[%clk 0:02:49]} 9. Bg3 {[%clk 0:02:56]}  Ne4 {[%clk 0:02:50]} 10. e3 {[%clk 0:02:56]}  Qa5 {[%clk 0:02:49]} 11. Rc1 {[%clk 0:02:55]}  Qxa2 {[%clk 0:02:48]} 12. Bd3 {[%clk 0:02:49]}  Bxc3+ {[%clk 0:02:47]} 13. bxc3 {[%clk 0:02:49]}  Qxc2 {[%clk 0:02:48]} 14. Rxc2 {[%clk 0:02:50]}  Bf5 {[%clk 0:02:44]} 15. Bxe4 {[%clk 0:02:43]}  Bxe4 {[%clk 0:02:44]} 16. Rb2 {[%clk 0:02:44]}  b5 {[%clk 0:02:35]} 17. O-O {[%clk 0:02:43]}  Bxf3 {[%clk 0:02:33]} 18. gxf3 {[%clk 0:02:43]}  a5 {[%clk 0:02:32]} 19. e4 {[%clk 0:02:41]}  dxe4 {[%clk 0:02:32]} 20. fxe4 {[%clk 0:02:40]}  Kd7 {[%clk 0:02:20]} 21. c4 {[%clk 0:02:38]}  b4 {[%clk 0:02:11]} 22. Ra1 {[%clk 0:02:38]}  c5 {[%clk 0:02:05]} 23. dxc5 {[%clk 0:02:30]}  Nc6 {[%clk 0:02:04]} 24. Rd2+ {[%clk 0:02:28]}  Ke7 {[%clk 0:02:03]} 25. Rd6 {[%clk 0:02:28]}  Rhc8 {[%clk 0:01:57]} 26. Rxh6 {[%clk 0:02:27]}  b3 {[%clk 0:01:29]} 27. Bd6+ {[%clk 0:02:27]}  Ke8 {[%clk 0:01:26]} 28. Rd1 {[%clk 0:02:23]}  a4 {[%clk 0:01:18]} 29. Rh8+ {[%clk 0:02:18]}  Kd7 {[%clk 0:01:17]} 30. Be5+ {[%clk 0:02:04]}  Ke7 {[%clk 0:01:08]} 31. Bd6+ {[%clk 0:01:59]}  Kf6 {[%clk 0:01:00]} 32. Rh3 {[%clk 0:01:38]}  Ne5 {[%clk 0:00:53]} 33. Bxe5+ {[%clk 0:00:58]}  Kxe5 {[%clk 0:00:53]} 34. Rd5+ {[%clk 0:00:58]}  Kxe4 {[%clk 0:00:50]} 35. Rhd3 {[%clk 0:00:43]}  Re8 {[%clk 0:00:13]} 36. Kg2 {[%clk 0:00:34]}  Kf4 {[%clk 0:00:09]} 37. Rf3+ {[%clk 0:00:35]}  Kg4 {[%clk 0:00:08]} 38. Rg3+ {[%clk 0:00:35]}  Kh5 {[%clk 0:00:04]} 39. Rdxg5+ {[%clk 0:00:34]}  Kh6 {[%clk 0:00:04]} 40. f4 {[%clk 0:00:32]}  Re2+ {[%clk 0:00:02]} 41. Kg1 {[%clk 0:00:32]}  Re1+ {[%clk 0:00:01]} 42. Kf2 {[%clk 0:00:32]} 1-0


[Site "https://www.chess.com"]

[Event "Titled Tuesday Blitz August 31 2021"]
[White "Csonka, Balazs"]
[Black "Vachier-Lagrave, Maxime"]
[WhiteFideId "742910"]
[BlackFideId "623539"]
[WhiteElo "2404"]
[BlackElo "2850"]
[Result "0-1"]
[Round "05"]
[TimeControl "180+1"]
[Date "2021.08.31"]
[WhiteClock "0:00:01"]
[BlackClock "0:01:00"]

1. e4 {[%clk 0:03:00]}  e6 {[%clk 0:02:57]} 2. d4 {[%clk 0:02:59]}  d5 {[%clk 0:02:53]} 3. e5 {[%clk 0:02:49]}  c5 {[%clk 0:02:52]} 4. c3 {[%clk 0:02:49]}  Nc6 {[%clk 0:02:53]} 5. Nf3 {[%clk 0:02:49]}  Qb6 {[%clk 0:02:54]} 6. Be2 {[%clk 0:02:49]}  cxd4 {[%clk 0:02:48]} 7. cxd4 {[%clk 0:02:50]}  Nh6 {[%clk 0:02:48]} 8. Bxh6 {[%clk 0:02:50]}  Qxb2 {[%clk 0:02:47]} 9. Nbd2 {[%clk 0:02:51]}  gxh6 {[%clk 0:02:47]} 10. O-O {[%clk 0:02:51]}  Bd7 {[%clk 0:02:47]} 11. Rb1 {[%clk 0:02:51]}  Qxa2 {[%clk 0:02:47]} 12. Rxb7 {[%clk 0:02:51]}  Rb8 {[%clk 0:02:45]} 13. Qa1 {[%clk 0:02:26]}  Qxa1 {[%clk 0:02:41]} 14. Rxb8+ {[%clk 0:02:26]}  Nxb8 {[%clk 0:02:41]} 15. Rxa1 {[%clk 0:02:26]}  Bb4 {[%clk 0:02:29]} 16. Rxa7 {[%clk 0:02:16]}  O-O {[%clk 0:02:29]} 17. Rb7 {[%clk 0:02:00]}  Bc3 {[%clk 0:02:29]} 18. Nf1 {[%clk 0:01:34]}  Rc8 {[%clk 0:02:16]} 19. Ng3 {[%clk 0:01:19]}  Bc6 {[%clk 0:02:16]} 20. Rb1 {[%clk 0:01:14]}  Ba5 {[%clk 0:02:09]} 21. h3 {[%clk 0:00:59]}  Nd7 {[%clk 0:02:04]} 22. Nh5 {[%clk 0:00:32]}  Bd8 {[%clk 0:02:03]} 23. Nh2 {[%clk 0:00:27]}  Ra8 {[%clk 0:01:49]} 24. Ng4 {[%clk 0:00:20]}  Ra4 {[%clk 0:01:49]} 25. Bb5 {[%clk 0:00:16]}  Bxb5 {[%clk 0:01:48]} 26. Rxb5 {[%clk 0:00:17]}  Kf8 {[%clk 0:01:49]} 27. Rb7 {[%clk 0:00:15]}  Nb6 {[%clk 0:01:41]} 28. Nhf6 {[%clk 0:00:10]}  Ra8 {[%clk 0:01:28]} 29. Nxh7+ {[%clk 0:00:10]}  Kg7 {[%clk 0:01:29]} 30. Nhf6 {[%clk 0:00:08]}  Nc4 {[%clk 0:01:29]} 31. Ne8+ {[%clk 0:00:08]}  Kg6 {[%clk 0:01:29]} 32. Nd6 {[%clk 0:00:08]}  h5 {[%clk 0:01:22]} 33. Ne3 {[%clk 0:00:04]}  Nxd6 {[%clk 0:01:21]} 34. exd6 {[%clk 0:00:04]}  Ra6 {[%clk 0:01:21]} 35. Rd7 {[%clk 0:00:04]}  Bf6 {[%clk 0:01:20]} 36. Nc2 {[%clk 0:00:03]}  Rc6 {[%clk 0:01:17]} 37. Nb4 {[%clk 0:00:01]}  Rc1+ {[%clk 0:01:17]} 38. Kh2 {[%clk 0:00:01]}  Bxd4 {[%clk 0:01:18]} 39. Nd3 {[%clk 0:00:01]}  h4 {[%clk 0:01:07]} 40. Nf4+ {[%clk 0:00:01]}  Kf6 {[%clk 0:01:05]} 41. Nh5+ {[%clk 0:00:01]}  Kg5 {[%clk 0:01:05]} 42. g4 {[%clk 0:00:01]}  hxg3+ {[%clk 0:01:06]} 43. Nxg3 {[%clk 0:00:01]}  Rc6 {[%clk 0:01:00]} 0-1


[Site "https://www.chess.com"]

[Event "Titled Tuesday Blitz August 31 2021"]
[White "Dang, Hoang Son"]
[Black "Hryshchenko, Kamila"]
[WhiteFideId "12402435"]
[BlackFideId "14147491"]
[WhiteElo "2248"]
[BlackElo "1936"]
[Result "1-0"]
[Round "05"]
[TimeControl "180+1"]
[Date "2021.08.31"]
[WhiteClock "0:00:11"]
[BlackClock "0:00:02"]

1. d4 {[%clk 0:02:58]}  Nf6 {[%clk 0:02:59]} 2. c4 {[%clk 0:02:59]}  g6 {[%clk 0:02:59]} 3. Nf3 {[%clk 0:02:59]}  Bg7 {[%clk 0:03:00]} 4. g3 {[%clk 0:03:00]}  d6 {[%clk 0:03:00]} 5. Bg2 {[%clk 0:03:01]}  O-O {[%clk 0:03:01]} 6. O-O {[%clk 0:03:01]}  c6 {[%clk 0:03:01]} 7. Nc3 {[%clk 0:03:02]}  Nbd7 {[%clk 0:03:02]} 8. e4 {[%clk 0:03:02]}  e5 {[%clk 0:03:03]} 9. Re1 {[%clk 0:03:00]}  h6 {[%clk 0:03:00]} 10. b3 {[%clk 0:02:57]}  a5 {[%clk 0:02:56]} 11. Ba3 {[%clk 0:02:56]}  exd4 {[%clk 0:02:55]} 12. Nxd4 {[%clk 0:02:48]}  Nc5 {[%clk 0:02:54]} 13. e5 {[%clk 0:02:44]}  Ng4 {[%clk 0:02:39]} 14. exd6 {[%clk 0:02:37]}  Qxd6 {[%clk 0:02:03]} 15. Nxc6 {[%clk 0:02:01]}  Qxd1 {[%clk 0:02:01]} 16. Ne7+ {[%clk 0:01:51]}  Kh7 {[%clk 0:02:01]} 17. Rexd1 {[%clk 0:01:40]}  Bxc3 {[%clk 0:02:00]} 18. Bxc5 {[%clk 0:01:40]}  Bxa1 {[%clk 0:01:43]} 19. Rxa1 {[%clk 0:01:38]}  Re8 {[%clk 0:01:41]} 20. Nd5 {[%clk 0:01:24]}  Be6 {[%clk 0:01:15]} 21. Nc7 {[%clk 0:01:21]}  Rec8 {[%clk 0:01:13]} 22. Bb6 {[%clk 0:01:05]}  a4 {[%clk 0:01:04]} 23. Nxe6 {[%clk 0:00:50]}  axb3 {[%clk 0:00:59]} 24. Nd4 {[%clk 0:00:37]}  b2 {[%clk 0:00:56]} 25. Rb1 {[%clk 0:00:36]}  Rxa2 {[%clk 0:00:48]} 26. Nc2 {[%clk 0:00:29]}  Ne5 {[%clk 0:00:17]} 27. c5 {[%clk 0:00:29]}  Nc4 {[%clk 0:00:15]} 28. Bd5 {[%clk 0:00:29]}  Nxb6 {[%clk 0:00:11]} 29. Bxa2 {[%clk 0:00:28]}  Na4 {[%clk 0:00:09]} 30. Bb3 {[%clk 0:00:28]}  Nxc5 {[%clk 0:00:07]} 31. Bxf7 {[%clk 0:00:16]}  Nd3 {[%clk 0:00:03]} 32. Na3 {[%clk 0:00:12]}  Rc1+ {[%clk 0:00:03]} 33. Kg2 {[%clk 0:00:12]}  Rc3 {[%clk 0:00:02]} 34. Nc4 {[%clk 0:00:12]}  b5 {[%clk 0:00:02]} 35. Nxb2 {[%clk 0:00:11]}  Nxb2 {[%clk 0:00:01]} 36. Rxb2 {[%clk 0:00:11]}  Rc7 {[%clk 0:00:02]} 37. Bd5 {[%clk 0:00:11]}  Rd7 {[%clk 0:00:02]} 38. Rxb5 {[%clk 0:00:11]} 1-0


[Site "https://www.chess.com"]

[Event "Titled Tuesday Blitz August 31 2021"]
[White "Danielian, Vardan"]
[Black "Shimelkov, Vasiliy"]
[WhiteFideId "13301594"]
[BlackFideId "13701630"]
[WhiteElo "2518"]
[BlackElo "2073"]
[Result "1/2-1/2"]
[Round "05"]
[TimeControl "180+1"]
[Date "2021.08.31"]
[WhiteClock "0:00:16"]
[BlackClock "0:00:06"]

1. Nf3 {[%clk 0:03:00]}  d5 {[%clk 0:02:59]} 2. g3 {[%clk 0:02:58]}  Nf6 {[%clk 0:02:58]} 3. Bg2 {[%clk 0:02:58]}  g6 {[%clk 0:02:56]} 4. O-O {[%clk 0:02:58]}  Bg7 {[%clk 0:02:56]} 5. d4 {[%clk 0:02:59]}  O-O {[%clk 0:02:55]} 6. c4 {[%clk 0:03:00]}  c6 {[%clk 0:02:54]} 7. cxd5 {[%clk 0:03:00]}  cxd5 {[%clk 0:02:54]} 8. Ne5 {[%clk 0:03:00]}  Nc6 {[%clk 0:02:54]} 9. Nc3 {[%clk 0:03:00]}  Bf5 {[%clk 0:02:51]} 10. Bf4 {[%clk 0:02:57]}  Qb6 {[%clk 0:02:48]} 11. Na4 {[%clk 0:02:51]}  Qa5 {[%clk 0:02:31]} 12. Nxc6 {[%clk 0:02:29]}  bxc6 {[%clk 0:02:30]} 13. Rc1 {[%clk 0:02:29]}  Rac8 {[%clk 0:02:20]} 14. Be5 {[%clk 0:02:11]}  Be4 {[%clk 0:02:11]} 15. b3 {[%clk 0:01:57]}  Rfd8 {[%clk 0:02:04]} 16. e3 {[%clk 0:01:34]}  Bxg2 {[%clk 0:02:02]} 17. Kxg2 {[%clk 0:01:34]}  Ne4 {[%clk 0:02:02]} 18. Bxg7 {[%clk 0:01:34]}  Kxg7 {[%clk 0:02:02]} 19. Qc2 {[%clk 0:01:23]}  e6 {[%clk 0:01:34]} 20. Rfd1 {[%clk 0:01:19]}  Rd7 {[%clk 0:01:27]} 21. Nc3 {[%clk 0:00:58]}  Nxc3 {[%clk 0:01:23]} 22. Qxc3 {[%clk 0:00:59]}  Qxa2 {[%clk 0:01:20]} 23. Ra1 {[%clk 0:00:44]}  Qe2 {[%clk 0:01:18]} 24. Rd2 {[%clk 0:00:44]}  Qb5 {[%clk 0:01:16]} 25. Rda2 {[%clk 0:00:43]}  Rcc7 {[%clk 0:00:41]} 26. Ra5 {[%clk 0:00:39]}  Qb6 {[%clk 0:00:40]} 27. b4 {[%clk 0:00:36]}  h5 {[%clk 0:00:37]} 28. h4 {[%clk 0:00:36]}  Re7 {[%clk 0:00:36]} 29. Qc5 {[%clk 0:00:35]}  Qxc5 {[%clk 0:00:31]} 30. bxc5 {[%clk 0:00:35]}  f6 {[%clk 0:00:29]} 31. Rb1 {[%clk 0:00:28]}  e5 {[%clk 0:00:28]} 32. Rb8 {[%clk 0:00:26]}  exd4 {[%clk 0:00:27]} 33. exd4 {[%clk 0:00:27]}  Re4 {[%clk 0:00:25]} 34. Ra8 {[%clk 0:00:26]}  Rxd4 {[%clk 0:00:24]} 35. R5xa7 {[%clk 0:00:27]}  Rxa7 {[%clk 0:00:23]} 36. Rxa7+ {[%clk 0:00:27]}  Kf8 {[%clk 0:00:21]} 37. Rc7 {[%clk 0:00:27]}  Rc4 {[%clk 0:00:20]} 38. Rxc6 {[%clk 0:00:27]}  Ke7 {[%clk 0:00:20]} 39. Rc7+ {[%clk 0:00:28]}  Ke6 {[%clk 0:00:20]} 40. Rc6+ {[%clk 0:00:27]}  Ke5 {[%clk 0:00:20]} 41. Kf3 {[%clk 0:00:24]}  Rc3+ {[%clk 0:00:19]} 42. Ke2 {[%clk 0:00:24]}  d4 {[%clk 0:00:15]} 43. Rc8 {[%clk 0:00:23]}  Rc2+ {[%clk 0:00:14]} 44. Kf3 {[%clk 0:00:20]}  d3 {[%clk 0:00:13]} 45. Rd8 {[%clk 0:00:19]}  d2 {[%clk 0:00:09]} 46. c6 {[%clk 0:00:18]}  Rc3+ {[%clk 0:00:08]} 47. Ke2 {[%clk 0:00:17]}  Rxc6 {[%clk 0:00:08]} 48. Rxd2 {[%clk 0:00:17]}  Ke4 {[%clk 0:00:06]} 49. f3+ {[%clk 0:00:16]}  Ke5 {[%clk 0:00:06]} 1/2-1/2


[Site "https://www.chess.com"]

[Event "Titled Tuesday Blitz August 31 2021"]
[White "Do Valle Cardoso, Lucas"]
[Black "Malka, Samuel"]
[WhiteFideId "2163144"]
[BlackFideId "20643675"]
[WhiteElo "2387"]
[BlackElo "2446"]
[Result "1-0"]
[Round "05"]
[TimeControl "180+1"]
[Date "2021.08.31"]
[WhiteClock "0:01:17"]
[BlackClock "0:00:14"]

1. e4 {[%clk 0:03:00]}  c5 {[%clk 0:02:59]} 2. Nf3 {[%clk 0:02:58]}  e6 {[%clk 0:02:59]} 3. Nc3 {[%clk 0:02:59]}  Nc6 {[%clk 0:02:57]} 4. d4 {[%clk 0:02:58]}  cxd4 {[%clk 0:02:58]} 5. Nxd4 {[%clk 0:02:59]}  Nf6 {[%clk 0:02:59]} 6. Be2 {[%clk 0:02:59]}  Bb4 {[%clk 0:02:55]} 7. O-O {[%clk 0:02:53]}  Bxc3 {[%clk 0:02:47]} 8. bxc3 {[%clk 0:02:53]}  Nxe4 {[%clk 0:02:47]} 9. Bd3 {[%clk 0:02:53]}  Nxc3 {[%clk 0:02:44]} 10. Qg4 {[%clk 0:02:52]}  Nxd4 {[%clk 0:02:36]} 11. Qxg7 {[%clk 0:02:52]}  Nde2+ {[%clk 0:02:33]} 12. Kh1 {[%clk 0:02:52]}  Rf8 {[%clk 0:02:29]} 13. Bh6 {[%clk 0:02:47]}  Qe7 {[%clk 0:02:19]} 14. Rfe1 {[%clk 0:02:47]}  f5 {[%clk 0:01:02]} 15. Bxe2 {[%clk 0:02:27]}  Nxe2 {[%clk 0:00:53]} 16. Qxf8+ {[%clk 0:02:24]}  Qxf8 {[%clk 0:00:54]} 17. Bxf8 {[%clk 0:02:25]}  Kxf8 {[%clk 0:00:54]} 18. Rxe2 {[%clk 0:02:25]}  b6 {[%clk 0:00:55]} 19. Kg1 {[%clk 0:02:19]}  Bb7 {[%clk 0:00:51]} 20. f3 {[%clk 0:02:18]}  Rc8 {[%clk 0:00:50]} 21. a4 {[%clk 0:02:16]}  Bc6 {[%clk 0:00:48]} 22. a5 {[%clk 0:02:15]}  b5 {[%clk 0:00:48]} 23. a6 {[%clk 0:02:08]}  Kf7 {[%clk 0:00:46]} 24. Kf2 {[%clk 0:02:05]}  Rb8 {[%clk 0:00:47]} 25. Rd2 {[%clk 0:01:54]}  Ke7 {[%clk 0:00:42]} 26. Rd4 {[%clk 0:01:50]}  Kf6 {[%clk 0:00:27]} 27. Rh4 {[%clk 0:01:47]}  Kg6 {[%clk 0:00:27]} 28. Rb4 {[%clk 0:01:46]}  Rb6 {[%clk 0:00:26]} 29. c4 {[%clk 0:01:45]}  Rb8 {[%clk 0:00:18]} 30. cxb5 {[%clk 0:01:42]}  Rxb5 {[%clk 0:00:19]} 31. Rxb5 {[%clk 0:01:39]}  Bxb5 {[%clk 0:00:20]} 32. Rb1 {[%clk 0:01:37]}  Bxa6 {[%clk 0:00:19]} 33. Ra1 {[%clk 0:01:37]}  Bb5 {[%clk 0:00:19]} 34. Rxa7 {[%clk 0:01:38]}  Bc6 {[%clk 0:00:20]} 35. g3 {[%clk 0:01:25]}  Kf6 {[%clk 0:00:20]} 36. f4 {[%clk 0:01:25]}  Kg6 {[%clk 0:00:20]} 37. Ke3 {[%clk 0:01:25]}  h5 {[%clk 0:00:20]} 38. Rc7 {[%clk 0:01:22]}  Kf6 {[%clk 0:00:16]} 39. Rc8 {[%clk 0:01:20]}  Kg6 {[%clk 0:00:16]} 40. Rg8+ {[%clk 0:01:17]}  Kf6 {[%clk 0:00:16]} 41. Rg5 {[%clk 0:01:17]}  h4 {[%clk 0:00:14]} 42. gxh4 {[%clk 0:01:17]} 1-0


[Site "https://www.chess.com"]